bitfinex-derivatives/quotes_ETHF0:USTF0_20250309
["timestamp","ask_amount","ask_price","bid_price","bid_amount"]
[1741555940066,0.98985,2020.7,2020.5,0.98989]
[1741555940266,2.47425,2021.0,2020.4,5.2988]
[1741555940467,3.2078,2020.8,2020.4,0.0049473]
[1741555940670,0.98993,2020.5,2020.4,0.0049473]
[1741555941969,0.98993,2020.5,2019.7,4.56673]
[1741555941970,0.99027,2019.9,2019.7,3.2078]
[1741555942273,0.99022,2019.9,2019.7,4.19809]
[1741555942869,0.99022,2019.9,2019.6,1.882]
[1741555943071,3.2078,2020.2,2019.6,1.882]
[1741555943277,0.99762436,2020.0,2019.7,0.99029]
[1741555943463,0.00741436,2020.0,2019.9,0.99022]
[1741555943665,0.00741436,2020.0,2019.7,0.99029]
[1741555943666,0.99762436,2020.0,2019.7,0.99029]
[1741555944066,0.99023,2019.9,2019.7,0.99029]
[1741555944266,0.99029,2019.8,2019.6,0.99036]
[1741555944472,0.99029,2019.8,2019.5,2.091]
[1741555944672,0.00741436,2020.0,2019.5,3.08139]
[1741555945068,0.99033,2019.7,2019.5,2.091]
[1741555945275,3.2078,2019.9,2019.5,2.091]
[1741555945471,3.2078,2019.9,2019.4,3.2078]
[1741555945779,0.99037,2019.7,2019.4,0.99044]
[1741555946170,0.99037,2019.6,2019.4,0.99044]
[1741555946676,0.99037,2019.6,2019.3,3.2078]
[1741555946974,3.2078,2019.9,2019.3,3.2078]
[1741555947168,0.99043,2019.5,2019.3,4.1983]
[1741555947374,0.99052,2019.3,2018.7,9.6984]
[1741555947578,3.2078,2019.6,2018.7,9.6984]
[1741555947771,0.99052,2019.3,2019.1,0.99059]
[1741555947972,0.9905,2019.4,2018.7,9.2032]
[1741555948277,0.00741436,2020.0,2019.9,0.99022]
[1741555948777,0.00741436,2020.0,2019.6,3.2078]
[1741555948979,0.00741436,2020.0,2019.8,0.99024]
[1741555949279,0.99759436,2020.0,2019.8,0.99024]
[1741555949877,0.99759436,2020.0,2019.6,3.2078]
[1741555950077,0.99029,2019.8,2019.6,3.2078]
[1741555950377,0.99032,2019.7,2019.5,0.9904]
[1741555950778,0.99028,2019.8,2019.6,0.99035]
[1741555950974,0.99028,2019.8,2019.5,0.99039]
[1741555951175,3.2078,2019.9,2019.3,6.4616]
[1741555951176,0.99035,2019.7,2019.4,0.99042]
[1741555951677,0.99035,2019.7,2019.4,0.99043]
[1741555951871,0.99032,2019.7,2019.5,0.9904]
[1741555952076,3.2078,2019.9,2019.3,4.0046]
[1741555952277,0.99034,2019.7,2019.5,0.99038]
[1741555952878,3.2078,2019.9,2019.3,4.0046]
[1741555953084,0.99035,2019.7,2019.4,0.99047]
[1741555953578,0.99037,2019.6,2019.4,0.99044]
[1741555953775,0.00741436,2020.0,2019.5,5.6658]
[1741555953977,1.9842,2020.6,2019.8,3.2078]
[1741555954183,1.9842,2020.6,2020.1,3.2078]
[1741555954380,0.98986,2020.7,2020.4,0.98995]
[1741555954983,4.4686,2020.8,2020.4,0.98995]
[1741555955282,2.01801436,2020.8,2020.2,2.0005]
[1741555955685,0.98983,2020.7,2020.4,0.98995]
[1741555955883,2.01801436,2020.8,2020.4,0.98995]
[1741555955884,0.9899,2020.6,2020.4,0.98995]
[1741555956981,0.00741436,2020.8,2020.4,3.2078]
[1741555957187,0.99005,2020.3,2020.1,0.9901]
[1741555957680,4.49706,2020.7,2020.0,3.2078]
[1741555957880,0.99004,2020.3,2020.1,0.99009]
[1741555958183,4.49706,2020.7,2019.9,6.9838]
[1741555958184,2.0224,2020.7,2019.9,6.9838]
[1741555958385,5.68267,2020.5,2019.9,6.9838]
[1741555958578,0.99014,2020.1,2019.9,7.97399]
[1741555958778,0.99014,2020.1,2019.9,5.02499]
[1741555958985,0.99011,2020.2,2020.0,0.99017]
[1741555959488,5.68267,2020.5,2020.0,0.99017]
[1741555959682,0.99012,2020.1,2020.0,0.99017]
[1741555959884,0.99,2020.4,2020.2,0.99005]
[1741555960182,4.19774,2020.5,2020.3,0.98999]
[1741555960586,0.98994,2020.5,2020.3,0.98999]
[1741555960779,1.428,2020.6,2020.0,3.2078]
[1741555961091,0.98995,2020.5,2020.3,0.99001]
[1741555961290,0.98995,2020.5,2020.3,0.99002]
[1741555961586,2.0224,2020.7,2020.0,3.2078]
[1741555962085,0.98997,2020.5,2020.3,0.99001]
[1741555962692,0.98997,2020.5,2020.4,0.98998]
[1741555962887,2.0224,2020.7,2020.0,3.2078]
[1741555963093,0.99001,2020.4,2020.0,3.2078]
[1741555963396,0.99012,2020.1,2020.0,3.2078]
[1741555963691,0.99012,2020.1,2020.0,4.19797]
[1741555963890,5.68275,2020.5,2020.0,3.2078]
[1741555964093,0.9901,2020.2,2020.1,0.99012]
[1741555964288,3.4504,2020.7,2020.0,3.2078]
[1741555964489,0.99003,2020.3,2020.2,0.99005]
[1741555964990,0.99003,2020.3,2020.0,3.2078]
[1741555965490,0.99007,2020.3,2020.1,0.99009]
[1741555965690,4.49701,2020.7,2020.0,3.2078]
[1741555966103,0.99,2020.4,2020.2,0.99005]
[1741555966293,2.0224,2020.7,2020.0,3.2078]
[1741555966502,2.0224,2020.7,2020.1,2.457]
[1741555966797,0.98994,2020.5,2020.3,0.98998]
[1741555966999,0.99,2020.4,2020.2,0.99003]
[1741555967185,2.47475,2020.6,2020.1,2.457]
[1741555967390,0.99007,2020.3,2020.1,2.457]
[1741555967587,2.47475,2020.6,2020.1,3.44711]
[1741555967794,0.99004,2020.3,2020.2,0.99007]
[1741555968092,4.49703,2020.7,2020.3,0.99]
[1741555968302,0.99004,2020.3,2020.2,0.99006]
[1741555968696,0.99003,2020.3,2020.2,0.99006]
[1741555969304,0.99003,2020.3,2020.1,2.457]
[1741555969705,0.99003,2020.3,2020.2,0.99008]
[1741555969905,0.99008,2020.2,2020.1,3.44708]
[1741555970303,0.99008,2020.2,2020.1,2.457]
[1741555970805,0.99008,2020.2,2020.1,3.44712]
[1741555971005,0.99008,2020.2,2020.1,2.457]
[1741555971207,0.99004,2020.3,2020.2,0.99006]
[1741555971598,2.0224,2020.7,2020.1,2.47524]
[1741555971801,0.98996,2020.5,2020.4,0.98996]
[1741555972000,2.0224,2020.7,2020.0,5.68317]
[1741555972201,0.9899,2020.6,2020.5,0.98991]
[1741555972904,0.98995,2020.5,2020.4,0.98997]
[1741555973105,0.98996,2020.5,2020.3,4.19779]
[1741555973307,0.98996,2020.5,2020.4,0.98998]
[1741555973903,0.98996,2020.5,2020.3,4.19778]
[1741555974109,0.98998,2020.4,2020.3,3.2078]
[1741555974309,0.98998,2020.4,2020.3,0.99003]
[1741555975207,0.99007,2020.3,2020.1,0.9901]
[1741555975413,0.99007,2020.3,2020.1,0.99012]
[1741555975606,2.47486,2020.5,2020.0,3.2078]
[1741555975808,3.2078,2020.1,2019.8,0.99025]
[1741555976009,0.99022,2019.9,2019.8,0.99025]
[1741555976405,0.99037,2019.6,2019.5,0.50261]
[1741555976609,0.99037,2019.6,2019.5,0.00741]
[1741555977307,7.20991436,2019.8,2019.5,0.00741]
[1741555977602,0.00741436,2019.8,2019.7,0.99032]
[1741555980010,0.99037,2019.6,2019.5,0.00741]
[1741555980215,0.00741436,2019.8,2019.5,0.00741]
[1741555980519,0.99033,2019.7,2019.5,0.99781]
[1741555981105,0.00741436,2019.8,2019.5,0.00741]
[1741555981312,0.99037,2019.6,2019.5,0.00741]
[1741555981809,0.00741436,2019.8,2019.5,0.00741]
[1741555982210,0.99032,2019.7,2019.5,0.00741]
[1741555982413,0.00741436,2019.8,2019.5,0.99783]
[1741555982612,0.00741436,2019.8,2019.5,0.00741]
[1741555983218,0.99036,2019.7,2019.5,0.9978]
[1741555983718,0.99037,2019.6,2019.5,0.00741]
[1741555984716,0.99037,2019.6,2019.5,0.99783]
[1741555984918,0.99036,2019.7,2019.5,0.99783]
[1741555985217,0.99036,2019.7,2019.5,0.99781]
[1741555986508,0.00741436,2019.8,2019.5,0.00741]
[1741555986913,0.99037,2019.6,2019.5,0.00741]
[1741555987114,4.19817,2019.6,2019.5,0.00741]
[1741555987416,3.2078,2019.6,2018.9,3.2078]
[1741555987718,0.99066,2019.0,2018.9,3.2078]
[1741555987914,3.2078,2019.3,2018.9,3.2078]
[1741555988114,0.99066,2019.0,2018.9,3.2078]
[1741555988919,0.99066,2019.0,2018.9,4.19851]
[1741555989118,0.99066,2019.0,2018.9,3.2078]
[1741555990213,3.2078,2019.0,2018.7,5.34539]
[1741555990416,0.99076,2018.8,2018.7,5.34539]
[1741555991317,0.99079,2018.8,2018.5,6.1568]
[1741555991613,0.99074,2018.9,2018.5,6.1568]
[1741555991816,0.99068,2019.0,2018.5,8.63404]
[1741555992113,2.0605,2019.2,2018.8,0.99074]
[1741555992320,0.99071,2018.9,2018.8,0.99076]
[1741555992621,0.99071,2018.9,2018.7,0.99078]
[1741555992821,0.99074,2018.9,2018.7,0.99078]
[1741555993016,0.99066,2019.0,2018.5,6.1568]
[1741555993216,2.0605,2019.2,2018.5,6.1568]
[1741555993516,0.99074,2018.9,2018.7,0.99078]
[1741555993716,0.99074,2018.9,2018.8,0.99076]
[1741555993917,0.99069,2019.0,2018.8,0.99072]
[1741555994117,2.0605,2019.2,2018.8,0.99072]
[1741555994319,0.99069,2019.0,2018.8,0.99072]
[1741555994514,0.99069,2019.0,2018.5,3.2078]
[1741555994515,2.0605,2019.2,2018.5,3.2078]
[1741555994711,5.125,2019.3,2018.5,3.2078]
[1741555994915,4.6358,2019.6,2019.5,0.99042]
[1741555995215,1.9559,2019.7,2019.6,0.99037]
[1741555995818,1.95761436,2019.8,2019.7,0.99032]
[1741555996711,0.00741436,2019.8,2019.7,4.19812]
[1741555997518,0.00741436,2019.8,2019.7,4.59255953]
[1741555997724,1.9502,2020.3,2020.2,0.99008]
[1741555997928,0.98996,2020.5,2020.2,0.99008]
[1741555998129,0.98997,2020.5,2020.2,0.99004]
[1741555998919,9.04811436,2020.6,2020.1,0.00741436]
[1741555999116,0.98995,2020.5,2020.3,0.99001]
[1741555999518,10.03800436,2020.6,2020.1,0.00741436]
[1741555999718,10.03800436,2020.6,2020.3,0.98999]
[1741556001125,8.09750436,2020.6,2020.3,0.98999]
[1741556001325,0.98993,2020.5,2020.3,0.98999]
[1741556001719,0.98993,2020.5,2020.1,0.00741436]
[1741556001918,0.98993,2020.5,2020.3,0.99]
[1741556002120,7.10761436,2020.6,2020.1,0.00741436]
[1741556002419,0.98997,2020.5,2020.2,0.99004]
[1741556002829,0.98998,2020.4,2020.2,0.99004]
[1741556003517,0.99008,2020.2,2020.1,0.00741436]
[1741556004316,3.2078,2020.3,2020.1,0.00741436]
[1741556004514,0.99006,2020.3,2020.1,0.99752436]
[1741556004718,0.99006,2020.3,2020.2,0.99008]
[1741556004923,7.10761436,2020.6,2020.1,0.00741436]
[1741556005127,0.98998,2020.4,2020.2,0.99004]
[1741556005326,0.99001,2020.4,2020.2,0.99004]
[1741556005523,0.99001,2020.4,2020.1,0.00741436]
[1741556005732,0.99003,2020.3,2020.2,0.99005]
[1741556006234,0.99001,2020.4,2020.2,0.99005]
[1741556006421,7.10761436,2020.6,2020.2,0.99005]
[1741556006821,0.99001,2020.4,2020.1,0.99749436]
[1741556007623,0.99004,2020.3,2020.1,4.20529436]
[1741556009023,0.98995,2020.5,2020.1,3.21521436]
[1741556009221,3.89981436,2020.6,2020.1,3.21521436]
[1741556009417,0.99,2020.4,2020.2,0.99005]
[1741556009822,0.00741436,2020.6,2020.5,0.98993]
[1741556010024,0.9897,2021.0,2020.5,4.19773]
[1741556010219,4.0078,2021.1,2021.0,0.98968]
[1741556010435,4.99746,2021.1,2020.9,0.98971]
[1741556010621,4.99746,2021.1,2020.6,1.9545]
[1741556010622,0.98962,2021.2,2021.0,0.98967]
[1741556010936,2.0032,2021.4,2020.8,3.2078]
[1741556011230,0.00741436,2021.3,2020.8,3.2078]
[1741556011418,0.00741436,2021.3,2020.9,1.954]
[1741556011829,0.00741436,2021.3,2021.1,0.98961]
[1741556012229,0.00741436,2021.3,2021.2,0.98959]
[1741556012826,1.9036,2021.8,2021.1,3.2078]
[1741556013026,2.89291,2021.8,2021.5,0.98941]
[1741556013225,3.2078,2022.0,2021.7,0.98934]
[1741556013426,3.2078,2022.0,2021.9,0.98924]
[1741556014151,0.00741436,2022.2,2022.1,0.98914]
[1741556014641,0.00741436,2022.2,2022.1,4.19694]
[1741556015430,3.882,2023.2,2022.2,2.47275]
[1741556015626,6.4849,2023.2,2022.7,0.98883]
[1741556015826,0.98877,2022.9,2022.6,0.98887]
[1741556016022,6.4849,2023.2,2022.5,3.2078]
[1741556016229,0.9888,2022.9,2022.6,0.98889]
[1741556016436,4.19654,2023.0,2022.7,0.98884]
[1741556016622,3.21521436,2023.0,2022.5,3.2078]
[1741556016826,0.00741436,2023.0,2022.5,3.2078]
[1741556017332,0.00741436,2023.0,2022.9,0.98875]
[1741556017834,0.00741436,2023.0,2022.5,5.68012]
[1741556017835,0.00741436,2023.0,2022.8,0.98878]
[1741556018329,0.99612436,2023.0,2022.8,0.98878]
[1741556018639,0.00741436,2023.0,2022.9,0.98875]
[1741556019323,0.00741436,2023.0,2022.7,0.00741436]
[1741556019533,0.98875,2022.9,2022.7,0.00741436]
[1741556020537,0.98875,2022.9,2022.7,0.99626436]
[1741556020836,0.98876,2022.9,2022.7,0.99626436]
[1741556021532,0.00741436,2023.0,2022.7,0.00741436]
[1741556021738,0.98877,2022.9,2022.7,0.00741436]
[1741556022833,0.00741436,2023.0,2022.7,0.00741436]
[1741556023544,0.00741436,2023.0,2022.9,0.98875]
[1741556024234,0.99612436,2023.0,2022.7,0.00741436]
[1741556024431,0.00741436,2023.0,2022.7,0.00741436]
[1741556024740,0.00741436,2023.0,2022.8,0.98878]
[1741556025136,0.00741436,2023.0,2022.9,0.98875]
[1741556025332,4.48623,2023.6,2023.4,0.98849]
[1741556025533,0.98847,2023.5,2023.3,0.98853]
[1741556025738,0.98847,2023.5,2023.2,0.98856]
[1741556026237,5.2505,2023.7,2023.0,1.987]
[1741556026542,0.00741436,2023.6,2023.2,2.47153]
[1741556026847,0.00741436,2023.6,2023.5,0.98846]
[1741556028543,4.92198,2024.5,2023.4,8.131]
[1741556028742,4.36157,2024.3,2023.5,0.98843]
[1741556028936,3.2078,2024.0,2023.5,0.98843]
[1741556029132,0.98829,2023.9,2023.7,0.98831]
[1741556030245,0.98831,2023.8,2023.6,0.99579436]
[1741556030446,3.21273857,2024.0,2023.6,0.99579436]
[1741556030447,3.21273857,2024.0,2023.6,0.00741436]
[1741556030846,0.98833,2023.8,2023.6,0.99579436]
[1741556031040,3.21273857,2024.0,2023.6,0.00741436]
[1741556031041,0.98836,2023.7,2023.6,0.00741436]
[1741556032748,3.21273857,2024.0,2023.6,0.00741436]
[1741556032951,0.98836,2023.7,2023.6,0.00741436]
[1741556033144,0.98835,2023.8,2023.6,0.99581436]
[1741556033646,3.21273857,2024.0,2023.6,0.99581436]
[1741556033850,0.98836,2023.7,2023.6,0.00741436]
[1741556034543,0.98832,2023.8,2023.6,0.99579436]
[1741556035043,0.98832,2023.8,2023.6,0.99580436]
[1741556036050,0.98832,2023.8,2023.7,0.98836]
[1741556036445,0.98829,2023.9,2023.7,0.98836]
[1741556036748,0.98831,2023.8,2023.6,0.99579436]
[1741556037748,3.21273857,2024.0,2023.6,0.99579436]
[1741556038052,0.98834,2023.8,2023.7,0.98836]
[1741556038252,0.00493857,2024.0,2023.6,0.00741436]
[1741556038448,0.99317857,2024.0,2023.8,0.98828]
[1741556038649,0.99317857,2024.0,2023.9,0.98827]
[1741556039059,0.00493857,2024.0,2023.9,0.98827]
[1741556039243,1.8913,2024.3,2024.2,0.98812]
[1741556040768,2.87939,2024.3,2024.1,0.98815]
[1741556041265,2.87939,2024.3,2023.9,2.45]
[1741556041266,1.8913,2024.3,2023.9,2.45]
[1741556041570,0.98827,2023.9,2023.8,2.949]
[1741556041770,7.56932,2024.3,2023.8,2.949]
[1741556041962,0.98826,2024.0,2023.8,2.949]
[1741556042670,0.98826,2024.0,2023.8,3.9373]
[1741556042868,0.98827,2023.9,2023.8,2.949]
[1741556043069,0.98827,2023.9,2023.7,6.64516]
[1741556043275,5.0991,2024.3,2023.7,5.6568]
[1741556043661,0.98829,2023.9,2023.7,6.64513]
[1741556044172,2.47035,2024.2,2023.7,2.449]
[1741556044372,0.98829,2023.9,2023.7,6.64515]
[1741556044668,0.98829,2023.9,2023.7,4.19615]
[1741556044869,7.56932,2024.3,2023.9,0.98825]
[1741556044870,0.9882,2024.1,2023.9,0.98825]
[1741556045073,0.98823,2024.0,2023.8,0.98829]
[1741556045865,5.0991,2024.3,2023.7,3.2078]
[1741556046067,3.2078,2024.8,2024.0,3.2078]
[1741556046271,3.9861,2025.0,2024.9,0.98778]
[1741556046575,3.9861,2025.0,2024.7,0.98784]
[1741556046763,0.98787,2024.8,2024.5,0.98794]
[1741556047075,0.98787,2024.8,2024.6,2.449]
[1741556047076,0.98784,2024.8,2024.6,2.449]
[1741556047372,3.2078,2024.9,2024.2,8.29128]
[1741556047577,3.2078,2024.9,2024.2,7.3032]
[1741556047773,3.2078,2024.9,2024.4,0.98802]
[1741556047974,0.98798,2024.5,2024.3,0.98805]
[1741556048275,0.98798,2024.5,2024.2,5.34229]
[1741556048476,0.98798,2024.5,2024.2,4.3542]
[1741556048774,0.98793,2024.6,2024.4,0.988]
[1741556048962,0.98791,2024.7,2024.4,0.98798]
[1741556049165,0.98791,2024.7,2024.5,0.98796]
[1741556049379,0.98791,2024.7,2024.4,0.98799]
[1741556049577,0.98792,2024.6,2024.4,0.98799]
[1741556050367,5.2607,2024.9,2024.4,0.98799]
[1741556050566,0.98795,2024.6,2024.4,0.988]
[1741556050968,5.2607,2024.9,2024.2,2.449]
[1741556051168,2.0529,2024.9,2024.4,3.2078]
[1741556051371,3.9861,2025.0,2024.4,3.2078]
[1741556051575,1.9028,2025.0,2024.9,0.98778]
[1741556053669,1.9028,2025.0,2024.7,3.2078]
[1741556053871,1.9028,2025.0,2024.9,0.98778]
[1741556055572,1.9028,2025.0,2024.7,3.2078]
[1741556055774,1.9028,2025.0,2024.8,0.98778]
[1741556055977,1.9028,2025.0,2024.6,4.43640846]
[1741556055978,1.9028,2025.0,2024.7,3.2078]
[1741556056174,2.89054,2025.0,2024.7,0.98783]
[1741556056376,2.89054,2025.0,2024.7,0.98787]
[1741556057173,2.89056,2025.0,2024.6,1.9992]
[1741556057377,1.9028,2025.0,2024.6,1.9992]
[1741556057878,0.98754,2025.4,2025.2,0.98762]
[1741556058079,2.9108591,2025.8,2024.7,8.12443]
[1741556058080,0.98751,2025.5,2024.7,8.12443]
[1741556058274,1.9804,2025.6,2025.5,0.98748]
[1741556058474,0.98724,2026.0,2025.3,3.2078]
[1741556058672,1.958,2026.1,2025.4,1.9089]
[1741556058673,0.98736,2025.8,2025.4,1.9089]
[1741556058879,0.98733,2025.9,2025.6,0.98743]
[1741556059071,0.98727,2026.0,2025.7,0.98734]
[1741556059277,2.96763,2026.1,2025.8,0.98732]
[1741556059479,2.96762,2026.1,2025.8,0.98732]
[1741556059776,2.96762,2026.1,2025.6,3.2078]
[1741556059777,1.9804,2026.1,2025.6,3.2078]
[1741556059976,0.98726,2026.0,2025.8,0.98732]
[1741556060179,0.98731,2025.9,2025.7,0.98737]
[1741556061174,3.9384,2026.1,2025.6,3.2078]
[1741556061378,0.98724,2026.0,2025.6,3.2078]
[1741556061678,0.98729,2025.9,2025.8,0.98732]
[1741556061880,0.98726,2026.0,2025.6,3.2078]
[1741556062381,3.2078,2026.2,2025.8,0.98734]
[1741556062579,0.98727,2026.0,2025.7,4.4815]
[1741556062781,1.9246,2026.5,2025.7,4.4815]
[1741556062977,1.9246,2026.5,2025.9,3.2078]
[1741556063278,0.98693,2026.7,2026.0,5.67591]
[1741556063484,5.9233,2027.0,2026.4,0.98702]
[1741556063783,8.39024,2027.0,2026.4,0.98704]
[1741556064079,0.98694,2026.7,2026.4,0.98704]
[1741556064280,0.98694,2026.7,2026.4,4.19483]
[1741556064485,5.9233,2027.0,2026.4,3.2078]
[1741556064687,0.98697,2026.6,2026.4,0.98704]
[1741556065069,0.98697,2026.6,2026.4,0.98703]
[1741556065679,0.987,2026.5,2026.3,3.43306]
[1741556065884,3.2078,2026.8,2026.4,0.98705]
[1741556065885,0.98698,2026.6,2026.4,0.98705]
[1741556066180,0.98695,2026.6,2026.4,0.98702]
[1741556066570,0.987,2026.5,2026.4,0.98702]
[1741556066784,0.98692,2026.7,2026.3,2.84377515]
[1741556066975,0.98692,2026.7,2026.5,0.98697]
[1741556067178,0.98692,2026.7,2026.3,2.84377515]
[1741556067382,0.98687,2026.8,2026.4,3.2078]
[1741556067576,5.9233,2027.0,2026.4,3.2078]
[1741556067775,0.98683,2026.9,2026.7,0.98687]
[1741556067985,0.98685,2026.8,2026.7,0.98687]
[1741556068183,2.91138,2027.0,2026.8,0.98681]
[1741556068390,1.9246,2027.0,2026.5,2.4675]
[1741556068682,5.2464,2027.4,2027.0,0.98675]
[1741556068884,7.1757,2027.4,2026.8,2.445]
[1741556069084,3.2078,2027.4,2027.3,0.98661]
[1741556069285,1.9293,2027.8,2027.7,0.98641]
[1741556069488,5.2464,2028.2,2027.6,3.2078]
[1741556069690,3.2078,2028.2,2028.1,0.98622]
[1741556069989,3.2078,2028.2,2027.9,3.2078]
[1741556070377,3.2078,2028.2,2027.8,2.445]
[1741556070582,0.98632,2027.9,2027.8,2.445]
[1741556070879,3.2078,2027.9,2027.5,4.469]
[1741556071078,0.98646,2027.6,2027.5,4.469]
[1741556071389,3.2078,2027.9,2027.5,4.469]
[1741556071588,0.98646,2027.6,2027.5,4.469]
[1741556071784,3.2078,2027.9,2027.5,2.445]
[1741556072091,0.98646,2027.6,2027.5,2.445]
[1741556072290,3.2078,2027.9,2027.5,2.445]
[1741556072582,2.46561,2028.1,2027.1,0.00741436]
[1741556072583,3.2078,2027.6,2027.1,0.00741436]
[1741556072788,2.46611,2027.7,2027.1,0.00741436]
[1741556072789,4.19446,2027.2,2027.1,0.00741436]
[1741556073689,0.98663,2027.3,2027.1,0.00741436]
[1741556073884,0.98663,2027.3,2027.1,0.99410436]
[1741556074085,5.1541,2027.5,2027.1,0.00741436]
[1741556074291,5.1541,2027.5,2027.1,0.99411436]
[1741556074292,0.98663,2027.3,2027.1,0.99411436]
[1741556074687,0.98663,2027.3,2027.1,0.00741436]
[1741556075887,5.1541,2027.5,2027.1,0.00741436]
[1741556076081,0.98666,2027.2,2027.1,0.00741436]
[1741556076393,4.19446,2027.2,2027.1,0.00741436]
[1741556076882,1.9463,2027.5,2027.1,0.00741436]
[1741556077079,0.98666,2027.2,2027.1,0.00741436]
[1741556077285,1.9463,2027.5,2027.1,0.00741436]
[1741556077590,0.98666,2027.2,2027.1,0.00741436]
[1741556078288,4.0,2027.2,2026.6,1.9559]
[1741556078483,0.98688,2026.8,2026.6,2.94284]
[1741556079194,0.9869,2026.7,2026.5,3.2078]
[1741556079496,0.9869,2026.7,2026.5,4.19476]
[1741556079785,0.99422283,2026.8,2026.5,3.2078]
[1741556079991,0.9869,2026.7,2026.5,3.2078]
[1741556080191,0.9869,2026.7,2026.6,0.98695]
[1741556080391,0.99424283,2026.8,2026.6,0.98695]
[1741556080611,0.9869,2026.7,2026.5,4.19476]
[1741556080789,3.2078,2026.7,2026.4,0.0073959]
[1741556080989,0.987,2026.5,2026.4,0.0073959]
[1741556082190,0.98729,2025.9,2025.7,0.98735]
[1741556082382,2.46783,2026.3,2025.6,0.98741]
[1741556082383,0.98735,2025.8,2025.6,0.98741]
[1741556082587,2.46818,2026.0,2025.2,0.98759]
[1741556082786,2.46818,2026.0,2025.2,0.98763]
[1741556082787,0.98752,2025.5,2025.2,0.98763]
[1741556082987,3.2078,2025.7,2025.0,3.2078]
[1741556083297,0.98784,2024.8,2024.6,0.98791]
[1741556083594,3.2078,2025.1,2024.6,0.98788]
[1741556084189,3.2078,2025.1,2024.5,1.9383959]
[1741556084388,0.98783,2024.8,2024.6,0.98791]
[1741556085196,3.2078,2025.1,2024.5,0.0073959]
[1741556085404,0.98792,2024.6,2024.5,0.0073959]
[1741556088694,4.0,2024.6,2023.8,4.4289]
[1741556088892,3.2078,2024.8,2023.8,0.98831]
[1741556088893,3.2078,2024.3,2023.8,0.98831]
[1741556089194,0.98822,2024.0,2023.7,0.98834]
[1741556089598,0.9882,2024.1,2023.7,0.98834]
[1741556089894,0.0073959,2024.2,2023.7,0.0073959]
[1741556090297,0.0073959,2024.2,2024.0,0.98819]
[1741556090496,0.0073959,2024.2,2023.7,0.0073959]
[1741556090695,0.0073959,2024.2,2024.0,0.9882]
[1741556090895,0.9955459,2024.2,2023.9,4.19605]
[1741556091095,0.9955459,2024.2,2023.9,4.19606]
[1741556092201,0.9955459,2024.2,2023.9,4.19604]
[1741556092795,0.9882,2024.1,2023.9,3.2078]
[1741556093102,0.0073959,2024.2,2024.0,0.98818]
[1741556093292,0.0073959,2024.2,2024.1,0.98817]
[1741556093602,0.0073959,2024.2,2024.0,0.98822]
[1741556094101,3.2078,2025.0,2024.1,6.38117]
[1741556094397,2.0113,2025.3,2024.4,3.2078]
[1741556094602,0.98766,2025.2,2024.4,6.1568]
[1741556094904,0.98766,2025.2,2024.9,0.98777]
[1741556095396,2.0186959,2025.3,2024.9,0.98777]
[1741556095595,0.98768,2025.1,2024.8,0.0073959]
[1741556095899,0.98768,2025.1,2024.8,0.9951859]
[1741556096296,0.98767,2025.2,2024.8,0.0073959]
[1741556096602,0.98771,2025.1,2024.8,0.9951959]
[1741556096804,2.0186959,2025.3,2024.8,0.0073959]
[1741556097404,0.98778,2024.9,2024.8,0.0073959]
[1741556099502,4.98778,2024.9,2024.8,0.0073959]
[1741556099903,2.46961,2024.8,2024.2,2.0502]
[1741556100096,0.98802,2024.4,2024.3,0.98804]
[1741556100296,3.2078,2024.8,2024.2,2.0502]
[1741556100798,0.98797,2024.6,2024.4,0.98801]
[1741556101106,0.98795,2024.6,2024.3,0.0073959]
[1741556101301,0.98795,2024.6,2024.4,0.98799]
[1741556102002,3.2078,2024.8,2024.7,0.98787]
[1741556102205,0.9877,2025.1,2024.9,0.98775]
[1741556102405,0.98771,2025.1,2024.9,0.98775]
[1741556102908,0.0073959,2025.3,2025.2,0.98763]
[1741556103203,3.2078,2026.0,2025.1,8.11995]
[1741556103408,5.67595,2026.0,2025.5,3.2078]
[1741556103609,0.98744,2025.6,2025.5,3.2078]
[1741556103901,5.67595,2026.0,2025.1,5.6508]
[1741556104107,0.98742,2025.7,2025.5,0.98747]
[1741556104507,3.2078,2025.7,2025.3,0.0073959]
[1741556104702,0.98753,2025.4,2025.3,0.0073959]
[1741556105705,4.19533,2025.4,2025.3,5.9e-06]
[1741556105906,8.19533,2025.4,2025.3,5.9e-06]
[1741556106508,12.5341891,2025.4,2025.3,5.9e-06]
[1741556107501,11.5466591,2025.4,2024.1,2.949]
[1741556107703,0.98809,2024.3,2024.1,0.98815]
[1741556108006,3.2078,2024.7,2024.2,0.98809]
[1741556108213,3.2078,2024.7,2024.3,0.98807]
[1741556108512,3.2078,2024.7,2024.2,0.98808]
[1741556108710,3.2151959,2024.7,2024.3,0.0073959]
[1741556109203,3.2151959,2024.7,2024.3,0.9954359]
[1741556110703,3.2151959,2024.7,2024.3,0.0073959]
[1741556110904,0.98802,2024.4,2024.3,0.0073959]
[1741556111206,4.19582,2024.4,2024.3,0.0073959]
[1741556111614,0.0073959,2024.7,2024.3,0.0073959]
[1741556111810,0.98795,2024.6,2024.4,0.98798]
[1741556112108,0.0073959,2024.7,2024.3,0.9954259]
[1741556112409,3.2151959,2024.7,2024.3,0.0073959]
[1741556112605,3.2151959,2024.7,2024.3,0.9954559]
[1741556112816,0.98802,2024.4,2024.3,0.0073959]
[1741556114307,4.19582,2024.4,2024.3,0.0073959]
[1741556115012,0.98831,2023.8,2023.7,3.2078]
[1741556115917,3.2078,2023.8,2023.2,3.2078]
[1741556116107,0.98855,2023.4,2023.2,3.2078]
[1741556116301,0.98856,2023.3,2023.2,3.2078]